bitfinex-derivatives/quotes_SOLF0:USTF0_20241015
["timestamp","ask_amount","ask_price","bid_price","bid_amount"]
[1729004334945,3.2823,152.34,152.3,1.20498481]
[1729004335132,40.97,152.35,152.3,1.20498481]
[1729004335338,44.2516,152.38,152.33,3.2823]
[1729004335535,40.97,152.38,152.31,1.20498481]
[1729004335841,40.97,152.38,152.34,1.20498481]
[1729004336045,40.97,152.4,152.35,3.2818]
[1729004336341,40.97,152.38,152.36,1.20498481]
[1729004336643,3.31462464,152.37,152.32,1.20498481]
[1729004336843,40.97,152.35,152.32,1.20498481]
[1729004337050,40.97,152.35,152.32,3.2826]
[1729004337240,40.97,152.35,152.33,1.20487376]
[1729004337542,44.2516,152.38,152.34,4.48707376]
[1729004337745,44.2516,152.38,152.35,1.20487376]
[1729004338043,40.97,152.38,152.35,1.20487376]
[1729004338346,3.2818,152.36,152.33,1.20487376]
[1729004338540,40.97,152.38,152.33,1.20487376]
[1729004338841,3.20496887,152.37,152.34,1.20494041]
[1729004339145,40.97,152.38,152.34,0.06886653]
[1729004339844,44.2511,152.4,152.35,3.2819]
[1729004340040,40.97,152.4,152.33,1.20487376]
[1729004340444,3.2816,152.38,152.36,1.20423559]
[1729004340647,40.97,152.38,152.34,1.20423559]
[1729004340840,3.2807,152.42,152.38,3.2812]
[1729004341243,40.97,152.43,152.38,3.2812]
[1729004341435,3.21617916,152.45,152.39,1.20423559]
[1729004341740,115.18702672,152.48,152.34,56.41423559]
[1729004342045,40.97,152.48,152.36,40.97]
[1729004342343,25.2,152.5,152.4,1.20423559]
[1729004342542,25.2,152.45,152.41,2.6519]
[1729004342756,25.2,152.45,152.37,2.59303559]
[1729004342943,25.2,152.45,152.33,3.23560312]
[1729004342944,3.2818,152.37,152.33,3.2824]
[1729004343152,3.26945672,152.36,152.26,5.86556954]
[1729004343447,3.2829,152.31,152.27,3.2836]
[1729004343648,25.2,152.32,152.26,2.6519]
[1729004343949,40.98,152.33,152.27,1.20499149]
[1729004344636,40.98,152.36,152.27,1.20499149]
[1729004344957,44.27931926,152.36,152.27,1.20499149]
[1729004345247,44.262,152.36,152.32,3.2826]
[1729004345442,40.98,152.36,152.33,1.20499149]
[1729004345742,40.98,152.39,152.35,3.282]
[1729004346043,40.98,152.39,152.36,1.20499149]
[1729004346549,40.98,152.39,152.27,1.20499149]
[1729004346848,3.2818,152.37,152.33,3.2824]
[1729004347144,15.5342,152.42,152.37,1.20499149]
[1729004347342,40.98,152.38,152.26,2.6519]
[1729004347538,3.282,152.36,152.26,2.6519]
[1729004347841,15.5342,152.42,152.26,43.6319]
[1729004347842,40.98,152.4,152.26,43.6319]
[1729004348543,40.98,152.4,152.27,1.20467216]
[1729004348843,40.98,152.37,152.27,1.20467216]
[1729004349047,40.98,152.35,152.27,1.20467216]
[1729004349247,3.2827,152.32,152.27,1.20467216]
[1729004349550,40.98,152.32,152.27,1.20467216]
[1729004349859,40.98,152.29,152.17,3.30027584]
[1729004350045,40.98,152.29,152.18,40.98]
[1729004350447,6.5595,152.46,152.25,40.98]
[1729004350749,1.3753,152.45,152.34,40.98]
[1729004351050,3.2801,152.44,152.34,55.22]
[1729004351254,3.3354131,152.46,152.35,3.78859452]
[1729004351443,3.28,152.45,152.4,3.2808]
[1729004351646,40.98,152.42,152.35,3.78859452]
[1729004351946,3.2812,152.39,152.35,3.2818]
[1729004352151,3.2812,152.39,152.29,17.45391041]
[1729004352152,40.98,152.43,152.3,43.5734]
[1729004352552,40.98,152.45,152.32,40.98]
[1729004353046,3.2802,152.44,152.4,3.2809]
[1729004353250,3.2802,152.44,152.3,2.5934]
[1729004353251,40.98,152.4,152.3,2.5934]
[1729004353649,40.98,152.4,152.31,3.2828]
[1729004353848,40.98,152.4,152.3,2.5934]
[1729004354450,3.2818,152.37,152.3,2.5934]
[1729004354649,40.98,152.34,152.2,3.23788256]
[1729004354849,3.283,152.31,152.27,3.2837]
[1729004355049,40.98,152.34,152.23,2.7326]
[1729004355255,40.98,152.32,152.23,2.7326]
[1729004355462,16.05489576,152.31,152.23,2.7326]
[1729004355651,6.17495991,152.3,152.23,2.7326]
[1729004355850,6.17495991,152.29,152.23,2.7326]
[1729004356147,1.3758,152.33,152.23,2.7326]
[1729004356355,56.89859873,152.32,152.23,2.7326]
[1729004356548,40.98,152.32,152.24,3.2844]
[1729004356860,15.91923734,152.31,152.24,3.2844]
[1729004357056,3.2835,152.29,152.24,3.2844]
[1729004357257,15.91923734,152.28,152.19,2.8]
[1729004357554,12.03064567,152.33,152.24,40.98]
[1729004357744,3.28546311,152.3,152.21,40.98]
[1729004358054,6.24392261,152.29,152.21,40.98]
[1729004358257,1.3758,152.33,152.21,40.98]
[1729004358458,3.3571925,152.34,152.21,40.98]
[1729004358651,40.98,152.35,152.21,40.98]
[1729004358861,40.98,152.33,152.2,40.98]
[1729004359153,3.2834,152.29,152.25,3.2841]
[1729004359359,40.98,152.33,152.2,40.98]
[1729004360268,3.2835,152.29,152.23,3.2844]
[1729004360564,40.98,152.33,152.2,40.98]
[1729004360754,3.2829,152.32,152.28,3.2834]
[1729004361056,44.23768523,152.37,152.23,40.98]
[1729004361366,40.98,152.33,152.2,40.98]
[1729004361663,40.98,152.33,152.2,55.22]
[1729004361964,40.98,152.3,152.19,2.8]
[1729004362357,40.98,152.3,152.19,43.78]
[1729004362557,3.2835,152.29,152.25,3.2842]
[1729004363058,44.2631,152.3,152.26,3.2838]
[1729004363463,3.2831,152.3,152.19,43.78]
[1729004363759,3.2827,152.32,152.22,40.98]
[1729004364149,6.1341636,152.31,152.22,40.98]
[1729004364353,6.1341636,152.3,152.22,40.98]
[1729004364548,6.1341636,152.29,152.22,40.98]
[1729004364853,3.25768523,152.37,152.24,40.98]
[1729004364854,44.23768523,152.37,152.24,40.98]
[1729004365058,15.95610933,152.36,152.25,1.3843]
[1729004365256,44.23768523,152.37,152.25,1.3843]
[1729004365257,44.23768523,152.37,152.25,15.5843]
[1729004365852,3.2824,152.34,152.25,15.5843]
[1729004366258,44.23768523,152.37,152.27,40.98]
[1729004366560,3.22124545,152.38,152.28,2.7759]
[1729004366757,1.3706,152.39,152.29,40.98]
[1729004367259,40.98,152.46,152.32,40.98]
[1729004367452,42.3021,152.46,152.32,55.18]
[1729004367651,42.3021,152.46,152.35,40.98]
[1729004367857,42.3021,152.46,152.4,3.2808]
[1729004367858,3.2802,152.44,152.4,3.2808]
[1729004368057,42.3021,152.46,152.4,3.2808]
[1729004368464,3.21686588,152.47,152.37,40.98]
[1729004368660,40.98,152.51,152.38,2.7759]
[1729004369055,3.2793,152.48,152.38,4.1997]
[1729004369254,40.98,152.54,152.4,40.98]
[1729004369455,40.98,152.56,152.42,40.98]
[1729004370164,40.98,152.54,152.4,40.98]
[1729004370353,40.98,152.54,152.41,14.2]
[1729004370552,3.279,152.5,152.46,3.2796]
[1729004370763,40.98,152.54,152.41,14.2]
[1729004371260,40.98,152.51,152.4,55.18]
[1729004371665,3.2793,152.48,152.43,3.2802]
[1729004371865,3.2793,152.48,152.4,55.18]
[1729004371866,40.98,152.54,152.4,55.18]
[1729004372264,40.98,152.51,152.4,55.18]
[1729004372467,40.98,152.51,152.4,40.98]
[1729004372670,3.2795,152.47,152.42,3.2804]
[1729004373060,3.2795,152.47,152.38,16.9714]
[1729004373660,3.2793,152.48,152.38,16.9714]
[1729004373866,3.2793,152.48,152.43,3.2801]
[1729004374072,3.19970322,152.49,152.38,2.7714]
[1729004374368,40.98,152.49,152.43,3.2802]
[1729004374573,44.21546325,152.49,152.43,3.2802]
[1729004374963,44.21546325,152.49,152.38,2.7714]
[1729004375366,3.24376266,152.49,152.4,40.98]
[1729004375658,40.98,152.51,152.43,3.2802]
[1729004375862,40.98,152.51,152.4,40.98]
[1729004376063,40.98,152.54,152.4,40.98]
[1729004376262,15.88967173,152.53,152.4,40.98]
[1729004376463,6.1114122,152.52,152.42,40.98]
[1729004376669,3.2784,152.52,152.42,40.98]
[1729004376969,40.98,152.54,152.42,40.98]
[1729004377267,6.11928671,152.53,152.48,3.2791]
[1729004377566,3.2784,152.52,152.42,40.98]
[1729004377965,40.98,152.54,152.5,3.2788]
[1729004378166,6.11783155,152.53,152.46,3.28182421]
[1729004378373,12.08706016,152.57,152.47,1.3062]
[1729004378568,4.56333497,152.57,152.47,1.3062]
[1729004378870,15.81064669,152.56,152.47,1.3062]
[1729004379167,15.81064669,152.55,152.5,3.2787]
[1729004379370,6.08101796,152.54,152.47,1.3062]
[1729004379671,9.72985679,152.56,152.47,1.3062]
[1729004380072,9.72985679,152.56,152.53,3.2781]
[1729004380258,6.00236493,152.55,152.53,3.2781]
[1729004380459,6.00236493,152.55,152.47,1.3062]
[1729004380460,9.72985679,152.56,152.5,40.98]
[1729004380875,9.72985679,152.56,152.55,3.2777]
[1729004381284,4.2385653,152.56,152.55,3.2777]
[1729004381581,1.3278,152.64,152.62,3.2761]
[1729004381769,1.3278,152.64,152.55,40.98]
[1729004381961,1.3278,152.64,152.55,55.16]
[1729004382166,1.3278,152.64,152.59,3.2767]
[1729004382362,3.2764,152.62,152.55,3.32623369]
[1729004382781,1.3278,152.64,152.59,3.2769]
[1729004382970,4.6037,152.64,152.55,3.32623369]
[1729004383167,1.3278,152.64,152.55,40.98]
[1729004383366,1.3278,152.64,152.55,44.23971557]
[1729004384072,1.3278,152.64,152.55,40.98]
[1729004384268,1.3278,152.64,152.54,14.18]
[1729004384468,5.81552702,152.63,152.54,17.39416868]
[1729004384671,4.6037,152.64,152.54,17.39416868]
[1729004384870,1.3278,152.64,152.55,40.98]
[1729004386481,3.2753,152.67,152.63,3.2758]
[1729004387069,40.98,152.64,152.51,40.98]
[1729004387277,40.98,152.61,152.49,40.98]
[1729004387487,3.278,152.54,152.51,3.2785]
[1729004387681,1.3321,152.6,152.51,3.2785]
[1729004387882,5.80114648,152.59,152.48,74.20688683]
[1729004388183,3.2776,152.56,152.48,74.20688683]
[1729004388780,3.2773,152.57,152.48,74.20688683]
[1729004389279,3.2775,152.57,152.48,74.20688683]
[1729004389479,1.4265,152.59,152.48,74.20688683]
[1729004389780,5.79870343,152.58,152.48,74.20688683]
[1729004389976,3.2769,152.59,152.49,40.98]
[1729004390379,5.79581092,152.58,152.51,40.98]
[1729004390584,42.4065,152.63,152.51,40.98]
[1729004390585,3.2763,152.62,152.51,40.98]
[1729004390787,42.4065,152.63,152.58,3.2769]
[1729004391089,5.79731408,152.62,152.51,40.98]
[1729004391289,43.7284,152.63,152.57,3.2771]
[1729004391479,9.07135395,152.62,152.52,1.364]
[1729004391784,43.7284,152.63,152.52,1.364]
[1729004391979,5.79467111,152.62,152.52,1.364]
[1729004392283,43.7284,152.63,152.52,1.364]
[1729004392689,5.79238664,152.62,152.52,1.364]
[1729004392887,43.7284,152.63,152.52,1.364]
[1729004393284,5.79022926,152.62,152.52,1.364]
[1729004393490,3.2767,152.6,152.57,3.2772]
[1729004393992,3.277,152.59,152.55,3.2776]
[1729004394190,43.7284,152.63,152.52,1.364]
[1729004394390,5.78627478,152.62,152.52,1.364]
[1729004394586,5.78627478,152.61,152.52,1.364]
[1729004394786,43.7284,152.63,152.52,1.364]
[1729004394985,5.78613386,152.62,152.52,1.364]
[1729004395183,40.98,152.58,152.52,1.364]
[1729004395383,40.98,152.58,152.47,18.74948459]
[1729004395583,40.98,152.58,152.47,16.7891]
[1729004395786,5.78217283,152.57,152.46,3.22756179]
[1729004395990,5.78217283,152.57,152.41,14.14]
[1729004395991,5.78217283,152.56,152.45,42.3229]
[1729004396195,3.2781,152.54,152.5,3.2787]
[1729004396389,3.25739198,152.55,152.45,45.67207721]
[1729004396390,40.98,152.55,152.45,1.3429]
[1729004396590,40.98,152.52,152.45,1.3429]
[1729004396789,3.2794,152.47,152.43,3.2802]
[1729004397095,40.98,152.5,152.4,1.4069]
[1729004397293,3.2798,152.46,152.42,3.2804]
[1729004397485,40.98,152.5,152.42,3.2804]
[1729004397683,5.78001999,152.49,152.42,3.2804]
[1729004397879,40.98,152.47,152.38,1.4005]
[1729004398086,40.98,152.45,152.38,1.4005]
[1729004398486,3.2805,152.43,152.4,3.2809]
[1729004398679,40.98,152.45,152.38,1.4005]
[1729004399083,3.30129256,152.46,152.4,3.2808]
[1729004399084,3.2803,152.44,152.4,3.2808]
[1729004399886,3.35476674,152.46,152.38,1.4005]
[1729004400098,3.2805,152.43,152.39,3.281]
[1729004400296,2.7494,152.53,152.38,1.4005]
[1729004400485,18.41402374,152.52,152.43,3.2801]
[1729004400683,43.7294,152.53,152.4,3.31047831]
[1729004400684,40.98,152.48,152.4,3.31047831]
[1729004401086,3.2799,152.45,152.38,1.4005]
[1729004401297,3.21193533,152.45,152.38,1.4005]
[1729004401488,40.98,152.45,152.38,1.4005]
[1729004401693,3.2802,152.44,152.4,3.2808]
[1729004401891,44.18209183,152.45,152.38,1.4005]
[1729004402098,44.18209183,152.45,152.32,3.30394861]
[1729004402099,40.98,152.43,152.32,3.30394861]
[1729004402292,5.82030912,152.42,152.33,1.3288]
[1729004402497,5.90353772,152.44,152.33,1.3288]
[1729004402696,55.12,152.48,152.43,3.2801]
[1729004402894,40.98,152.59,152.38,40.98]
[1729004402895,15.13533297,152.47,152.38,40.98]
[1729004403095,3.31430777,152.47,152.35,40.98]
[1729004403298,40.98,152.48,152.35,40.98]
[1729004403486,9.38200039,152.47,152.35,40.98]
[1729004403690,3.34383828,152.46,152.35,40.98]
[1729004403897,5.8194854,152.45,152.37,40.98]
[1729004404104,42.3316,152.54,152.42,40.98]
[1729004404297,15.25298865,152.53,152.46,3.2797]
[1729004404502,15.25298865,152.53,152.43,1.4249]
[1729004404804,5.86750379,152.53,152.43,2.7284]
[1729004404996,5.86750379,152.52,152.43,2.7284]
[1729004405194,5.86750379,152.51,152.43,1.4249]
[1729004405396,5.86750379,152.5,152.47,3.2792]
[1729004405590,5.74265837,152.53,152.43,1.4249]
[1729004405806,1.419,152.58,152.47,40.98]
[1729004406405,40.98,152.54,152.43,1.4249]
[1729004406597,1.3023,152.53,152.43,1.4249]
[1729004406798,1.3023,152.53,152.35,40.98]
[1729004406799,40.98,152.46,152.31,14.14]
[1729004406997,40.98,152.46,152.36,1.4219]
[1729004407202,3.21458371,152.45,152.36,1.4219]
[1729004407701,40.98,152.49,152.36,42.4019]
[1729004407907,5.739719,152.48,152.36,42.4019]
[1729004408203,1.3023,152.53,152.41,40.98]
[1729004408398,5.74150547,152.52,152.41,44.33477828]
[1729004408704,1.3023,152.53,152.41,44.33477828]
[1729004408904,1.3023,152.53,152.44,40.98]
[1729004409102,1.419,152.58,152.49,3.2789]
[1729004409307,2.7213,152.58,152.46,40.98]
[1729004409495,40.98,152.56,152.45,1.3852]
[1729004409690,44.31738581,152.56,152.52,3.2782]
[1729004409899,44.31738581,152.56,152.45,1.3852]
[1729004410095,5.74952792,152.55,152.45,1.3852]
[1729004410297,40.98,152.54,152.45,1.3852]
[1729004410509,40.98,152.52,152.42,1.4057]
[1729004410712,40.98,152.49,152.37,2.452]
[1729004410901,1.3769,152.48,152.37,17.9977]
[1729004411200,44.31738581,152.56,152.42,40.98]
[1729004411401,16.32188998,152.55,152.42,44.21021407]
[1729004411605,9.42804509,152.54,152.42,44.21021407]
[1729004412106,15.17611816,152.54,152.42,44.21021407]
[1729004412508,5.74807307,152.54,152.47,40.98]
[1729004412709,5.74807307,152.54,152.53,3.2782]
[1729004413013,48.51729138,152.63,152.49,40.98]
[1729004413206,48.51729138,152.63,152.59,3.2767]
[1729004413207,15.32893734,152.61,152.59,3.2767]
[1729004413506,7.53729138,152.67,152.57,40.98]
[1729004413706,7.53729138,152.67,152.59,40.98]
[1729004413707,5.89880311,152.66,152.59,40.98]
[1729004413911,2.5939,152.69,152.62,40.98]
[1729004414119,1.2897,152.69,152.6,1.2893]
[1729004414409,1.2897,152.69,152.58,1.4107]
[1729004414715,1.2897,152.69,152.6,40.98]
[1729004415213,40.98,152.78,152.65,40.98]
[1729004415403,5.61547939,152.77,152.65,40.98]
[1729004415609,3.21111984,152.77,152.65,44.23961431]
[1729004415909,43.6425,152.8,152.67,40.98]
[1729004416211,43.6425,152.8,152.68,1.3071]
[1729004416411,40.98,152.77,152.68,1.3071]
[1729004416604,44.32710094,152.77,152.68,1.3071]
[1729004416806,3.34710094,152.77,152.68,1.3071]
[1729004417008,2.6625,152.8,152.71,40.98]
[1729004417310,9.8037,153.02,152.71,40.98]
[1729004417311,44.33422595,152.85,152.71,40.98]
[1729004417506,6.074,152.84,152.76,3.273]
[1729004417826,2.8023,152.84,152.71,40.98]
[1729004418215,2.8023,152.84,152.73,40.98]
[1729004418513,2.8023,152.84,152.8,3.2724]
[1729004418909,2.8023,152.84,152.73,40.98]
[1729004419716,2.8023,152.84,152.8,3.2722]
[1729004420009,2.8023,152.84,152.73,44.18648997]
[1729004420911,40.98,152.82,152.69,14.14]
[1729004421208,40.98,152.75,152.68,1.3071]
[1729004421621,40.98,152.77,152.68,1.3071]
[1729004421812,3.28990601,152.76,152.72,3.2739]
[1729004422012,40.98,152.8,152.68,1.3071]
[1729004422013,40.98,152.75,152.68,1.3071]
[1729004422211,40.98,152.75,152.7,3.2743]
[1729004422414,40.98,152.75,152.68,1.3071]
[1729004422619,40.98,152.75,152.63,55.12]
[1729004422825,40.98,152.73,152.61,1.3692]
[1729004423311,40.98,152.73,152.64,3.2756]
[1729004423312,3.2741,152.72,152.64,3.2756]
[1729004423523,3.2741,152.72,152.61,1.3692]
[1729004423716,44.31443056,152.73,152.64,3.2757]
[1729004423918,44.31443056,152.73,152.61,1.3692]
[1729004424916,40.98,152.69,152.61,1.3692]
[1729004425108,44.31443056,152.73,152.61,1.3692]
[1729004425109,40.98,152.67,152.61,1.3692]
[1729004425513,40.98,152.67,152.62,3.2762]
[1729004425717,40.98,152.67,152.61,1.3692]
[1729004426515,44.2548,152.69,152.62,3.276]
[1729004426719,44.31443056,152.73,152.61,1.3692]
[1729004427019,44.256,152.64,152.57,3.2772]
[1729004427332,44.256,152.64,152.52,40.98]
[1729004427333,40.98,152.62,152.54,1.3766]
[1729004428515,1.3813,152.63,152.54,1.3766]
[1729004428823,4.6573,152.63,152.57,3.2771]
[1729004429012,1.3813,152.63,152.54,1.3766]
[1729004429208,1.3813,152.63,152.55,40.98]
[1729004429520,44.31443056,152.73,152.6,40.98]
[1729004429723,59.78873056,152.73,152.61,3.32187071]
[1729004430022,59.78873056,152.73,152.6,40.98]
[1729004430316,3.2752,152.67,152.61,3.2764]
[1729004430520,40.98,152.68,152.55,40.98]
[1729004430714,40.98,152.65,152.54,1.3766]
[1729004430914,3.23777624,152.64,152.54,1.3766]
[1729004431109,40.98,152.65,152.54,1.3766]
[1729004431517,45.68873056,152.73,152.58,40.98]
[1729004431717,45.68873056,152.73,152.61,40.98]
[1729004432123,3.275,152.68,152.62,3.2762]
[1729004432321,3.275,152.68,152.58,40.98]
[1729004432322,40.98,152.7,152.56,40.98]
[1729004432515,40.98,152.67,152.54,1.3766]
[1729004432710,40.98,152.65,152.54,1.3766]
[1729004432915,44.31574174,152.65,152.54,1.3766]
[1729004433123,40.98,152.67,152.56,40.98]
[1729004433517,40.98,152.65,152.54,1.3766]
[1729004433820,44.2564,152.62,152.56,3.2774]
[1729004434023,44.2564,152.62,152.54,1.3766]
[1729004434024,40.98,152.62,152.54,1.3766]
[1729004434726,2.6353,152.64,152.54,1.3766]
[1729004435222,3.276,152.63,152.58,3.2769]
[1729004436117,1.3233,152.64,152.56,40.98]
[1729004436315,2.6359,152.72,152.61,40.98]
[1729004436725,3.2745,152.7,152.64,3.2757]
[1729004437018,6.56556873,152.7,152.61,40.98]
[1729004437224,3.2745,152.7,152.61,40.98]
[1729004437426,3.31269248,152.7,152.61,40.98]
[1729004437732,2.6359,152.72,152.61,40.98]
[1729004437923,3.2747,152.7,152.65,3.2756]
[1729004438117,40.98,152.71,152.58,40.98]
[1729004438319,3.2762,152.63,152.58,3.277]
[1729004438725,40.98,152.66,152.53,40.98]
[1729004438726,3.3330057,152.64,152.53,40.98]
[1729004438932,3.2762,152.63,152.58,3.277]
[1729004439137,40.98,152.66,152.58,3.277]
[1729004439430,3.2762,152.63,152.58,3.277]
[1729004439725,3.24683834,152.66,152.55,40.98]
[1729004439930,40.98,152.64,152.51,1.2989]
[1729004440229,2.7762,152.63,152.53,40.98]
[1729004440527,26.1785,152.72,152.51,1.2989]
[1729004440528,40.98,152.69,152.58,40.98]
[1729004440830,56.4944,152.71,152.58,44.21719856]
[1729004441031,18.78634019,152.71,152.6,40.98]
[1729004441620,3.2748,152.69,152.64,3.2757]
[1729004441824,40.98,152.68,152.55,1.3463]
[1729004442027,40.98,152.68,152.52,20.6565]
[1729004442028,40.98,152.65,152.52,14.1]
[1729004442227,40.98,152.65,152.5,1.428]
[1729004442228,15.4225,152.64,152.5,1.428]
[1729004442432,15.4225,152.64,152.36,9.845]
[1729004442433,40.98,152.57,152.46,40.98]
[1729004442737,40.98,152.57,152.44,2.8293]
[1729004442738,44.2820933,152.57,152.44,2.8293]
[1729004442929,1.4256,152.56,152.44,2.8293]
[1729004443124,3.2783,152.53,152.48,3.2792]
[1729004443431,1.4256,152.56,152.44,2.8293]
[1729004444326,1.4256,152.56,152.46,40.98]
[1729004445236,4.7033,152.56,152.5,3.2786]
[1729004445640,1.4256,152.56,152.46,40.98]
[1729004445928,40.98,152.55,152.45,1.428]
[1729004446128,40.98,152.55,152.44,1.4013]
[1729004446129,40.98,152.52,152.44,1.4013]
[1729004446333,40.98,152.48,152.38,1.3866]
[1729004446525,1.2991,152.47,152.36,1.3791]
[1729004446725,3.34000859,152.46,152.36,1.3791]
[1729004446928,6.61970859,152.46,152.4,3.2808]
[1729004447130,1.2991,152.47,152.36,42.3591]
[1729004447327,45.62927754,152.47,152.36,1.3791]
[1729004447628,40.98,152.45,152.36,1.3791]
[1729004448535,1.2991,152.47,152.39,40.98]
[1729004448936,3.30523733,152.49,152.44,3.2799]
[1729004449329,3.30523733,152.49,152.39,40.98]
[1729004449633,40.98,152.47,152.36,42.3591]
[1729004450026,3.2799,152.45,152.4,3.2808]
[1729004450234,40.98,152.45,152.36,1.3791]
[1729004450533,3.2807,152.42,152.36,4.6608]
[1729004450730,3.30490364,152.49,152.23,6.5691]
[1729004450731,40.98,152.43,152.23,6.5691]
[1729004450936,1.3915,152.41,152.32,1.4179]
[1729004451633,3.21402125,152.4,152.32,1.4179]
[1729004451830,40.98,152.4,152.32,1.4179]
[1729004452036,3.20516268,152.39,152.32,1.4179]
[1729004452229,3.2819,152.36,152.32,1.4179]
[1729004452433,40.98,152.38,152.32,1.4179]
[1729004452837,3.281,152.4,152.35,3.2819]
[1729004453228,4.66770173,152.41,152.32,1.4179]
[1729004453429,1.3915,152.41,152.32,42.3979]
[1729004453636,1.2918,152.42,152.32,42.3979]
[1729004454543,1.2918,152.42,152.39,3.2811]
[1729004454745,1.2918,152.42,152.32,42.3979]
[1729004455039,1.2918,152.42,152.39,3.2811]
[1729004455245,1.2918,152.42,152.32,42.3979]
[1729004455936,14.08,152.47,152.37,40.98]
[1729004456134,3.2802,152.44,152.39,3.2811]
[1729004456348,14.08,152.47,152.37,40.98]
[1729004456838,43.6534,152.48,152.37,44.29572372]
[1729004457038,2.6734,152.48,152.37,40.98]
[1729004457243,1.3282,152.48,152.35,40.98]
[1729004457441,40.98,152.46,152.39,3.2812]
[1729004457748,40.98,152.46,152.35,40.98]
[1729004457945,3.2801,152.44,152.39,3.2811]
[1729004458247,40.98,152.46,152.35,40.98]
[1729004458442,3.2799,152.45,152.4,3.2808]
[1729004458654,1.4253,152.47,152.37,40.98]
[1729004458832,1.4253,152.47,152.37,44.29605195]
[1729004459040,1.4253,152.47,152.34,1.3673]
[1729004459041,3.2801,152.44,152.39,3.2811]
[1729004459547,40.98,152.46,152.34,1.3673]
[1729004459746,40.98,152.43,152.34,1.3673]
[1729004459948,55.06,152.45,152.34,1.3673]
[1729004460638,3.2805,152.43,152.38,3.2813]
[1729004460838,14.08,152.45,152.34,42.3473]
[1729004461039,3.2801,152.44,152.37,3.2815]
[1729004461245,55.06,152.45,152.34,1.3673]
[1729004461547,40.98,152.39,152.32,1.4179]
[1729004461848,3.2815,152.38,152.33,3.2823]
[1729004462047,3.3610187,152.39,152.26,1.3631]
[1729004462239,1.4039,152.37,152.28,1.3083]
[1729004462444,40.98,152.35,152.28,1.3083]
[1729004462743,40.98,152.3,152.17,40.98]
[1729004462936,40.98,152.27,152.18,1.3083]
[1729004463245,14.08,152.31,152.18,1.3083]
[1729004463246,1.407,152.29,152.18,1.3083]
[1729004463748,3.2842,152.25,152.2,3.2851]
[1729004463949,1.4039,152.28,152.18,1.3083]
[1729004464445,3.2842,152.25,152.19,3.2853]
[1729004464649,40.98,152.25,152.18,1.3083]
[1729004464948,17.3646,152.24,152.15,40.98]
[1729004465142,14.08,152.24,152.14,1.4026]
[1729004465649,14.08,152.24,152.2,3.2851]
[1729004465851,1.4039,152.28,152.19,40.98]
[1729004466048,58.3427,152.33,152.25,3.2842]
[1729004466241,55.06,152.33,152.22,40.98]
[1729004466443,40.98,152.31,152.23,1.3451]
[1729004467641,3.2847,152.23,152.16,3.2859]
[1729004467837,3.28995793,152.23,152.15,1.3451]
[1729004468049,40.98,152.24,152.15,1.3451]
[1729004468543,3.24888275,152.23,152.15,1.3451]
[1729004468944,40.98,152.24,152.15,1.3451]
[1729004469445,3.285,152.22,152.17,3.2857]
[1729004469752,40.98,152.21,152.15,1.3451]
[1729004469950,40.98,152.21,152.08,45.25736151]
[1729004470158,40.98,152.19,152.09,1.3232]